[Event "FIDE WCCC Open-12 2024"]
[Site "Montesilvano"]
[Date "2024.11.18"]
[Round "3.59"]
[White "Anuzis, Finas"]
[Black "Sobirov, Feruzbek"]
[Result "0-1"]
[ECO "D02"]
[WhiteElo "1614"]
[BlackElo "1487"]
[PlyCount "74"]
[EventDate "2024.11.18"]
[EventType "swiss"]
[EventCountry "ITA"]
[TimeControl "5400+30"]

1. d4 {[%emt 0:00:03]} Nf6 {[%emt 0:01:20]} 2. Nf3 {[%emt 0:00:43]} e6 {[%emt 0:00:19]} 3. Bf4 {[%emt 0:00:37]} d5 {[%emt 0:00:40]} 4. e3 {[%emt 0:00:39]} Bd6 {[%emt 0:00:47]} 5. Bg3 {[%emt 0:01:06]} O-O {[%emt 0:01:16]} 6. Bd3 {[%emt 0:03:25]} Ne4 {[%emt 0:03:19]} 7. Nbd2 {[%emt 0:07:24]} f5 {[%emt 0:01:51]} 8. O-O {[%emt 0:05:36]} c5 {[%emt 0:03:26]} 9. c3 {[%emt 0:06:38]} Nc6 {[%emt 0:02:38]} 10. Ne1 {[%emt 0:08:43]} cxd4 {[%emt 0:06:50]} 11. exd4 {[%emt 0:04:16]} f4 {[%emt 0:02:47]} 12. Bxe4 {[%emt 0:04:54]} dxe4 {[%emt 0:00:23]} 13. Nxe4 {[%emt 0:01:04]} fxg3 {[%emt 0:00:08]} 14. hxg3 {[%emt 0:07:32]} Bc7 {[%emt 0:01:41]} 15. Nf3 {[%emt 0:08:42]} Qd5 {[%emt 0:01:17]} 16. Nc5 {[%emt 0:02:20]} b6 {[%emt 0:05:12]} 17. Nb3 {[%emt 0:01:26]} a5 {[%emt 0:04:07]} 18. Nbd2 {[%emt 0:05:30]} Qb5 {[%emt 0:01:58]} 19. Qc2 {[%emt 0:03:52]} Bb7 {[%emt 0:03:07]} 20. g4 {[%emt 0:02:51]} Qd5 {[%emt 0:02:30]} 21. Rfe1 {[%emt 0:03:32]} Qd6 {[%emt 0:03:18]} 22. Qb3 {[%emt 0:03:09]} Rae8 {[%emt 0:01:51]} 23. Nc4 {[%emt 0:01:54]} Qf4 {[%emt 0:01:54]} 24. Ncd2 {[%emt 0:03:26]} Qxg4 {[%emt 0:01:38]} 25. Kf1 {[%emt 0:01:33]} Nd8 {[%emt 0:01:14]} 26. Qc4 {[%emt 0:12:35]} Bf4 {[%emt 0:01:36]} 27. Ne5 {[%emt 0:00:00]} Bxg2+ {[%emt 0:00:50]} 28. Kg1 {[%emt 0:00:00]} Bxe5 {[%emt 0:00:14]} 29. dxe5 {[%emt 0:00:00]} Qg5 {[%emt 0:00:23]} 30. Kh2 {[%emt 0:00:00]} Qxd2 {[%emt 0:00:25]} 31. Kxg2 {[%emt 0:00:00]} Qxf2+ {[%emt 0:00:08]} 32. Kh1 {[%emt 0:00:00]} Qf3+ {[%emt 0:00:15]} 33. Kh2 {[%emt 0:00:00]} Qh5+ {[%emt 0:00:08]} 34. Kg1 {[%emt 0:00:53]} Qg5+ {[%emt 0:00:08]} 35. Kh1 {[%emt 0:00:31]} Rf2 {[%emt 0:00:08]} 36. Qe4 {[%emt 0:01:00]} Qh5+ {[%emt 0:00:16]} 37. Kg1 {[%emt 0:00:25]} Qh2# {[%emt 0:00:05]} 0-1

[Event "FIDE WCCC Open-12 2024"]
[Site "Montesilvano"]
[Date "2024.11.18"]
[Round "3.60"]
[White "Krasniqi, Troi"]
[Black "Mamarasulov, Husan"]
[Result "0-1"]
[ECO "B32"]
[WhiteElo "1610"]
[BlackElo "1407"]
[PlyCount "48"]
[EventDate "2024.11.18"]
[EventType "swiss"]
[EventCountry "ITA"]
[TimeControl "5400+30"]

1. e4 {[%emt 1:31:00]} c5 {[%emt 0:00:06]} 2. Nf3 {[%emt 0:00:00]} Nc6 {[%emt 0:00:05]} 3. d4 {[%emt 0:00:00]} cxd4 {[%emt 0:00:08]} 4. Nxd4 {[%emt 0:00:00]} e5 {[%emt 0:00:05]} 5. Nb5 {[%emt 0:00:00]} d6 {[%emt 0:00:15]} 6. Bc4 {[%emt 0:02:30]} Nf6 {[%emt 1:32:51]} 7. Bg5 {[%emt 0:00:00]} a6 {[%emt 0:00:00]} 8. Bxf6 {[%emt 0:00:00]} gxf6 {[%emt 0:00:00]} 9. N5c3 {[%emt 0:00:00]} Rg8 {[%emt 0:00:00]} 10. Qh5 {[%emt 0:00:00]} Rg7 {[%emt 0:00:00]} 11. h3 {[%emt 0:00:00]} Nd4 {[%emt 0:00:00]} 12. Bd3 {[%emt 0:00:00]} Qb6 {[%emt 0:00:00]} 13. b3 {[%emt 0:00:00]} Rxg2 {[%emt 0:00:00]} 14. Rf1 {[%emt 0:00:00]} Be6 {[%emt 0:00:00]} 15. Nd5 {[%emt 0:00:00]} Bxd5 {[%emt 0:00:00]} 16. exd5 {[%emt 0:00:00]} Qa5+ {[%emt 0:00:00]} 17. Nd2 {[%emt 0:00:00]} Rg5 {[%emt 0:00:00]} 18. Qd1 {[%emt 0:00:00]} e4 {[%emt 0:00:00]} 19. Bxe4 {[%emt 0:00:00]} Re5 {[%emt 0:00:00]} 20. Qg4 {[%emt 0:00:00]} f5 {[%emt 0:00:00]} 21. Qg2 {[%emt 0:00:00]} Rxe4+ {[%emt 0:00:00]} 22. Kd1 {[%emt 0:00:00]} Qc3 {[%emt 0:00:00]} 23. Nxe4 {[%emt 0:00:00]} Qxc2+ {[%emt 0:00:00]} 24. Ke1 {[%emt 0:00:00]} Qe2# {[%emt 0:00:00]} 0-1

[Event "FIDE WCCC Open-12 2024"]
[Site "Montesilvano"]
[Date "2024.11.18"]
[Round "3.66"]
[White "Lin, Alex Y"]
[Black "Zutautas, Mantas"]
[Result "0-1"]
[ECO "A11"]
[WhiteElo "1943"]
[BlackElo "1540"]
[PlyCount "84"]
[EventDate "2024.11.18"]
[EventType "swiss"]
[EventCountry "ITA"]
[TimeControl "5400+30"]

1. c4 {[%emt 0:00:02]} c6 {[%emt 0:00:07]} 2. d3 {[%emt 0:00:09]} d5 {[%emt 0:00:17]} 3. cxd5 {[%emt 0:00:02]} cxd5 {[%emt 0:00:09]} 4. e3 {[%emt 0:00:11]} Nf6 {[%emt 0:00:15]} 5. Nd2 {[%emt 0:00:06]} e6 {[%emt 0:00:11]} 6. Be2 {[%emt 0:00:23]} Nc6 {[%emt 0:00:27]} 7. Ngf3 {[%emt 0:00:08]} Be7 {[%emt 0:00:34]} 8. O-O {[%emt 0:00:07]} O-O {[%emt 0:00:04]} 9. Re1 {[%emt 0:00:03]} b6 {[%emt 0:01:08]} 10. a3 {[%emt 0:00:15]} Bb7 {[%emt 0:00:46]} 11. b3 {[%emt 0:00:13]} Rc8 {[%emt 0:01:13]} 12. Bb2 {[%emt 0:00:11]} Re8 {[%emt 0:03:26]} 13. Rc1 {[%emt 0:00:26]} Bf8 {[%emt 0:02:02]} 14. Qc2 {[%emt 0:00:57]} e5 {[%emt 0:02:02]} 15. Qb1 {[%emt 0:00:31]} Qd7 {[%emt 0:04:32]} 16. e4 {[%emt 0:00:55]} d4 {[%emt 0:00:44]} 17. b4 {[%emt 0:01:07]} Nh5 {[%emt 0:03:01]} 18. Bd1 {[%emt 0:00:38]} Nf4 {[%emt 0:02:31]} 19. Nh4 {[%emt 0:01:19]} Ba6 {[%emt 0:00:51]} 20. Bc2 {[%emt 0:00:23]} Qg4 {[%emt 0:02:06]} 21. Ndf3 {[%emt 0:00:21]} g5 {[%emt 0:01:56]} 22. g3 {[%emt 0:00:15]} gxh4 {[%emt 0:00:18]} 23. Nxh4 {[%emt 1:33:18]} Ne2+ {[%emt 1:13:20]} 24. Rxe2 {[%emt 0:00:00]} Qxe2 {[%emt 0:00:00]} 25. Re1 {[%emt 0:00:00]} Qg4 {[%emt 0:00:00]} 26. Bd1 {[%emt 0:00:00]} Qe6 {[%emt 0:00:00]} 27. Kg2 {[%emt 0:00:00]} Ne7 {[%emt 0:00:00]} 28. h3 {[%emt 0:00:00]} Ng6 {[%emt 0:00:00]} 29. Nxg6 {[%emt 0:00:00]} fxg6 {[%emt 0:00:00]} 30. Bg4 {[%emt 0:00:00]} Qf6 {[%emt 0:00:00]} 31. Bxc8 {[%emt 0:00:00]} Bxc8 {[%emt 0:00:00]} 32. Qa2+ {[%emt 0:00:00]} Qe6 {[%emt 0:00:00]} 33. Qxe6+ {[%emt 0:00:00]} Bxe6 {[%emt 0:00:00]} 34. Rc1 {[%emt 0:00:00]} Rc8 {[%emt 0:00:00]} 35. Rf1 {[%emt 0:00:00]} Rc2 {[%emt 0:00:00]} 36. Ba1 {[%emt 0:00:00]} Rd2 {[%emt 0:00:00]} 37. h4 {[%emt 0:00:00]} Rxd3 {[%emt 0:00:00]} 38. f4 {[%emt 0:00:00]} Bd6 {[%emt 0:00:00]} 39. Rc1 {[%emt 0:00:00]} Bd7 {[%emt 0:00:00]} 40. a4 {[%emt 0:00:00]} exf4 {[%emt 0:00:00]} 41. gxf4 {[%emt 0:00:00]} Bxf4 {[%emt 0:00:00]} 42. Rf1 {[%emt 0:00:00]} Bh3+ {[%emt 0:00:00]} 0-1

[Event "FIDE WCCC Open-12 2024"]
[Site "Montesilvano"]
[Date "2024.11.18"]
[Round "3.69"]
[White "Sharku, Uvejs"]
[Black "Mamarasulov, Husan"]
[Result "1-0"]
[ECO "D02"]
[WhiteElo "1516"]
[BlackElo "1407"]
[PlyCount "149"]
[EventDate "2024.11.18"]
[EventType "swiss"]
[EventCountry "ITA"]
[TimeControl "5400+30"]

1. d4 {[%emt 0:00:16]} Nf6 {[%emt 0:00:18]} 2. Bf4 {[%emt 0:00:44]} d5 {[%emt 0:00:48]} 3. Nf3 {[%emt 0:00:53]} e6 {[%emt 0:01:04]} 4. e3 {[%emt 0:02:05]} Be7 {[%emt 0:00:52]} 5. Bd3 {[%emt 0:01:04]} O-O {[%emt 0:00:34]} 6. O-O {[%emt 0:02:09]} Nc6 {[%emt 0:01:44]} 7. h3 {[%emt 0:01:51]} h5 {[%emt 0:02:08]} 8. Ne5 {[%emt 0:05:29]} Bd6 {[%emt 0:04:38]} 9. Nxc6 {[%emt 0:02:01]} bxc6 {[%emt 0:00:18]} 10. Bg5 {[%emt 0:00:13]} Rb8 {[%emt 0:01:04]} 11. b3 {[%emt 0:02:50]} e5 {[%emt 0:03:29]} 12. c3 {[%emt 0:09:05]} e4 {[%emt 0:03:54]} 13. Bc2 {[%emt 0:00:14]} Bf5 {[%emt 0:02:40]} 14. Bxf6 {[%emt 0:03:35]} Qxf6 {[%emt 0:00:57]} 15. Qxh5 {[%emt 0:01:20]} Bg6 {[%emt 0:01:41]} 16. Qd1 {[%emt 0:00:18]} Qg5 {[%emt 0:00:57]} 17. Nd2 {[%emt 0:03:10]} Bh5 {[%emt 0:01:15]} 18. Qe1 {[%emt 0:02:01]} Bf3 {[%emt 0:03:09]} 19. Nxf3 {[%emt 0:00:51]} exf3 {[%emt 0:00:07]} 20. g3 {[%emt 0:00:07]} Qh5 {[%emt 0:00:08]} 21. Kh2 {[%emt 0:03:22]} g5 {[%emt 0:00:19]} 22. Rh1 {[%emt 0:06:06]} g4 {[%emt 0:02:27]} 23. Kg1 {[%emt 0:14:13]} gxh3 {[%emt 0:00:28]} 24. Qf1 {[%emt 0:00:09]} Kg7 {[%emt 0:04:30]} 25. Qxh3 {[%emt 0:00:21]} Qxh3 {[%emt 0:00:33]} 26. Rxh3 {[%emt 0:00:08]} Rh8 {[%emt 0:00:32]} 27. Rxh8 {[%emt 0:00:06]} Rxh8 {[%emt 0:00:02]} 28. Bd1 {[%emt 0:39:49]} f5 {[%emt 0:15:14]} 29. Rc1 {[%emt 0:00:00]} Kf6 {[%emt 0:05:17]} 30. Bxf3 {[%emt 0:00:00]} a5 {[%emt 0:04:54]} 31. c4 {[%emt 0:00:00]} Ke6 {[%emt 0:01:05]} 32. cxd5+ {[%emt 0:00:00]} cxd5 {[%emt 0:00:10]} 33. Kg2 {[%emt 0:00:00]} a4 {[%emt 0:05:02]} 34. Rh1 {[%emt 0:00:00]} Rxh1 {[%emt 0:03:09]} 35. Kxh1 {[%emt 0:00:00]} a3 {[%emt 0:00:02]} 36. Kh2 {[%emt 0:00:00]} c6 {[%emt 0:00:51]} 37. Kh3 {[%emt 0:00:00]} Kf6 {[%emt 0:00:37]} 38. Be2 {[%emt 0:00:00]} c5 {[%emt 0:04:09]} 39. dxc5 {[%emt 0:00:00]} Bxc5 {[%emt 0:00:13]} 40. Kg2 {[%emt 0:00:00]} Ke5 {[%emt 0:00:47]} 41. Bd3 {[%emt 0:00:00]} d4 {[%emt 0:05:10]} 42. exd4+ {[%emt 0:00:00]} Kxd4 {[%emt 0:00:42]} 43. Bxf5 {[%emt 0:00:00]} Kc3 {[%emt 0:00:32]} 44. b4 {[%emt 0:00:00]} Bxb4 {[%emt 0:00:37]} 45. Kf3 {[%emt 0:00:00]} Kd4 {[%emt 0:00:26]} 46. g4 {[%emt 0:00:00]} Ke5 {[%emt 0:00:20]} 47. Ke3 {[%emt 0:00:00]} Bc5+ {[%emt 0:00:58]} 48. Kf3 {[%emt 0:00:00]} Bb6 {[%emt 0:02:01]} 49. Kg3 {[%emt 0:00:00]} Kf6 {[%emt 0:00:11]} 50. f4 {[%emt 0:00:00]} Be3 {[%emt 0:01:43]} 51. Bc2 {[%emt 0:00:00]} Bc5 {[%emt 0:01:06]} 52. g5+ {[%emt 0:00:00]} Kg7 {[%emt 0:00:16]} 53. Kg4 {[%emt 0:00:00]} Be3 {[%emt 0:02:27]} 54. f5 {[%emt 0:00:00]} Kf7 {[%emt 0:00:51]} 55. Kh5 {[%emt 0:00:00]} Bd4 {[%emt 0:00:33]} 56. Bb3+ {[%emt 0:00:00]} Kg7 {[%emt 0:00:14]} 57. f6+ {[%emt 0:00:00]} Bxf6 {[%emt 0:00:27]} 58. gxf6+ {[%emt 0:00:00]} Kxf6 {[%emt 0:00:04]} 59. Kg4 {[%emt 0:00:00]} Ke5 {[%emt 0:00:11]} 60. Kf3 {[%emt 0:00:00]} Kd4 {[%emt 0:00:17]} 61. Ke2 {[%emt 0:00:00]} Kc3 {[%emt 0:00:11]} 62. Ke3 {[%emt 0:00:00]} Kb4 {[%emt 0:01:14]} 63. Kd4 {[%emt 0:00:00]} Kb5 {[%emt 0:00:07]} 64. Kc3 {[%emt 0:00:00]} Kc5 {[%emt 0:00:09]} 65. Bc4 {[%emt 0:00:00]} Kb6 {[%emt 0:01:02]} 66. Kb4 {[%emt 0:00:00]} Kc6 {[%emt 0:01:23]} 67. Kxa3 {[%emt 0:00:00]} Kc5 {[%emt 0:00:06]} 68. Bf1 {[%emt 0:00:00]} Kb6 {[%emt 0:00:11]} 69. Ka4 {[%emt 0:00:00]} Kc5 {[%emt 0:00:16]} 70. Ka5 {[%emt 0:00:00]} Kc6 {[%emt 0:00:51]} 71. Bg2+ {[%emt 0:00:00]} Kc5 {[%emt 0:00:07]} 72. a4 {[%emt 0:00:00]} Kd6 {[%emt 0:02:07]} 73. Kb6 {[%emt 0:00:00]} Kd7 {[%emt 0:00:05]} 74. a5 {[%emt 0:00:00]} Kc8 {[%emt 0:00:06]} 75. a6 {[%emt 0:00:00]} 1-0